[Event "Titled Tuesday Blitz November 07 Late 2023"]
[White "Tikhonov, Viacheslav"]
[Black "mind1mover"]
[WhiteFideId "44196407"]
[WhiteElo "2574"]
[BlackElo "2833"]
[Result "1-0"]
[Round "11"]
[TimeControl "180+1"]
[Date "2023.11.07"]
[WhiteClock "0:00:04"]
[BlackClock "0:00:02"]
[Board "18"]

1. e4 {[%clk 0:03:00]}  Nc6 {[%clk 0:03:00]} 2. Nf3 {[%clk 0:02:59]}  d6 {[%clk 0:03:00]} 3. d4 {[%clk 0:02:59]}  Nf6 {[%clk 0:03:00]} 4. d5 {[%clk 0:02:58]}  Nb8 {[%clk 0:03:00]} 5. Nc3 {[%clk 0:02:58]}  c6 {[%clk 0:02:58]} 6. Bg5 {[%clk 0:02:55]}  h6 {[%clk 0:02:48]} 7. Bxf6 {[%clk 0:02:55]}  exf6 {[%clk 0:02:49]} 8. dxc6 {[%clk 0:02:54]}  bxc6 {[%clk 0:02:45]} 9. Bc4 {[%clk 0:02:53]}  Be7 {[%clk 0:02:37]} 10. O-O {[%clk 0:02:53]}  Nd7 {[%clk 0:02:33]} 11. Be2 {[%clk 0:02:49]}  Qb6 {[%clk 0:02:21]} 12. Na4 {[%clk 0:02:46]}  Qc7 {[%clk 0:02:20]} 13. Nd4 {[%clk 0:02:44]}  Nb6 {[%clk 0:02:16]} 14. c4 {[%clk 0:02:39]}  O-O {[%clk 0:02:12]} 15. Nc3 {[%clk 0:02:34]}  Re8 {[%clk 0:02:10]} 16. b3 {[%clk 0:02:32]}  Bf8 {[%clk 0:02:09]} 17. Bg4 {[%clk 0:02:32]}  Bb7 {[%clk 0:02:08]} 18. Qf3 {[%clk 0:02:23]}  a6 {[%clk 0:02:06]} 19. Rad1 {[%clk 0:02:18]}  a5 {[%clk 0:01:47]} 20. Qg3 {[%clk 0:02:14]}  a4 {[%clk 0:01:42]} 21. c5 {[%clk 0:02:12]}  Nc8 {[%clk 0:01:19]} 22. Nf5 {[%clk 0:01:52]}  Re5 {[%clk 0:01:11]} 23. f4 {[%clk 0:01:47]}  Rxc5 {[%clk 0:00:54]} 24. Nxa4 {[%clk 0:01:47]}  Rc2 {[%clk 0:00:42]} 25. Nxh6+ {[%clk 0:01:46]}  gxh6 {[%clk 0:00:33]} 26. Bxc8+ {[%clk 0:01:38]}  Bg7 {[%clk 0:00:33]} 27. Bf5 {[%clk 0:01:37]}  Rxa2 {[%clk 0:00:24]} 28. Qg4 {[%clk 0:01:25]}  Bc8 {[%clk 0:00:22]} 29. Rf3 {[%clk 0:01:07]}  Bxf5 {[%clk 0:00:14]} 30. exf5 {[%clk 0:01:08]}  Qa7+ {[%clk 0:00:14]} 31. Kh1 {[%clk 0:01:08]}  h5 {[%clk 0:00:10]} 32. Qxh5 {[%clk 0:01:05]}  Qd4 {[%clk 0:00:09]} 33. Rg1 {[%clk 0:01:01]}  Ra1 {[%clk 0:00:08]} 34. Rff1 {[%clk 0:00:56]}  Rxf1 {[%clk 0:00:08]} 35. Rxf1 {[%clk 0:00:57]}  Re8 {[%clk 0:00:05]} 36. Qd1 {[%clk 0:00:48]}  Qb4 {[%clk 0:00:03]} 37. h3 {[%clk 0:00:39]}  d5 {[%clk 0:00:03]} 38. Qc2 {[%clk 0:00:31]}  Re1 {[%clk 0:00:03]} 39. Rxe1 {[%clk 0:00:11]}  Qxe1+ {[%clk 0:00:04]} 40. Kh2 {[%clk 0:00:11]}  Bh6 {[%clk 0:00:05]} 41. g3 {[%clk 0:00:12]}  Qe3 {[%clk 0:00:01]} 42. h4 {[%clk 0:00:11]}  d4 {[%clk 0:00:02]} 43. Nc5 {[%clk 0:00:11]}  Bf8 {[%clk 0:00:02]} 44. Nd3 {[%clk 0:00:11]}  c5 {[%clk 0:00:02]} 45. Kg2 {[%clk 0:00:11]}  Qe4+ {[%clk 0:00:02]} 46. Kh2 {[%clk 0:00:09]}  Qxf5 {[%clk 0:00:03]} 47. Qe2 {[%clk 0:00:08]}  Qd5 {[%clk 0:00:03]} 48. Qc2 {[%clk 0:00:06]}  Qe4 {[%clk 0:00:03]} 49. Qd2 {[%clk 0:00:06]}  Bd6 {[%clk 0:00:03]} 50. Nf2 {[%clk 0:00:05]}  Qf3 {[%clk 0:00:03]} 51. Nd3 {[%clk 0:00:05]}  f5 {[%clk 0:00:04]} 52. Qc2 {[%clk 0:00:05]}  Qe3 {[%clk 0:00:04]} 53. Kg2 {[%clk 0:00:04]}  Qe4+ {[%clk 0:00:04]} 54. Kh2 {[%clk 0:00:05]}  Qe3 {[%clk 0:00:04]} 55. Kg2 {[%clk 0:00:04]}  Kg7 {[%clk 0:00:05]} 56. Kh2 {[%clk 0:00:05]}  Qf3 {[%clk 0:00:05]} 57. Qd2 {[%clk 0:00:04]}  f6 {[%clk 0:00:05]} 58. Qc2 {[%clk 0:00:05]}  Qe3 {[%clk 0:00:06]} 59. Kg2 {[%clk 0:00:04]}  Be7 {[%clk 0:00:06]} 60. Kh2 {[%clk 0:00:05]}  Kf8 {[%clk 0:00:06]} 61. Kg2 {[%clk 0:00:04]}  Kg7 {[%clk 0:00:06]} 62. Kh2 {[%clk 0:00:05]}  Bf8 {[%clk 0:00:07]} 63. Kg2 {[%clk 0:00:05]}  Qe4+ {[%clk 0:00:07]} 64. Kh2 {[%clk 0:00:06]}  Qf3 {[%clk 0:00:05]} 65. Qd2 {[%clk 0:00:06]}  Bd6 {[%clk 0:00:05]} 66. Qc2 {[%clk 0:00:06]}  Kh6 {[%clk 0:00:03]} 67. Qd2 {[%clk 0:00:07]}  Bc7 {[%clk 0:00:02]} 68. Qc2 {[%clk 0:00:07]}  Bb6 {[%clk 0:00:02]} 69. Qd2 {[%clk 0:00:07]}  Qe4 {[%clk 0:00:02]} 70. Qc2 {[%clk 0:00:07]}  Kg6 {[%clk 0:00:03]} 71. Qd2 {[%clk 0:00:07]}  Kh7 {[%clk 0:00:02]} 72. Qc2 {[%clk 0:00:08]}  Ba5 {[%clk 0:00:02]} 73. Qxc5 {[%clk 0:00:04]}  Qe2+ {[%clk 0:00:02]} 74. Kh3 {[%clk 0:00:04]}  Qf1+ {[%clk 0:00:02]} 75. Kh2 {[%clk 0:00:04]}  Qe2+ {[%clk 0:00:03]} 76. Kh3 {[%clk 0:00:05]}  Qxd3 {[%clk 0:00:03]} 77. Qxa5 {[%clk 0:00:04]}  Qf1+ {[%clk 0:00:03]} 78. Kh2 {[%clk 0:00:05]}  Qf2+ {[%clk 0:00:04]} 79. Kh3 {[%clk 0:00:05]}  Qf1+ {[%clk 0:00:04]} 80. Kh2 {[%clk 0:00:06]}  Qe2+ {[%clk 0:00:04]} 81. Kh3 {[%clk 0:00:06]}  Qe4 {[%clk 0:00:02]} 82. Qc7+ {[%clk 0:00:05]}  Kg6 {[%clk 0:00:02]} 83. Qd8 {[%clk 0:00:05]}  Kf7 {[%clk 0:00:01]} 84. Qd7+ {[%clk 0:00:05]}  Kf8 {[%clk 0:00:02]} 85. Qd8+ {[%clk 0:00:05]}  Kf7 {[%clk 0:00:02]} 86. Qd7+ {[%clk 0:00:06]}  Kg8 {[%clk 0:00:02]} 87. Qd8+ {[%clk 0:00:06]}  Kg7 {[%clk 0:00:03]} 88. Kh2 {[%clk 0:00:06]}  d3 {[%clk 0:00:03]} 89. h5 {[%clk 0:00:06]}  Qe2+ {[%clk 0:00:03]} 90. Kh3 {[%clk 0:00:06]}  Qxh5+ {[%clk 0:00:03]} 91. Kg2 {[%clk 0:00:06]}  Qe2+ {[%clk 0:00:04]} 92. Kh3 {[%clk 0:00:07]}  d2 {[%clk 0:00:04]} 93. Qd7+ {[%clk 0:00:07]}  Kg6 {[%clk 0:00:04]} 94. Qd8 {[%clk 0:00:06]}  Qh5+ {[%clk 0:00:03]} 95. Kg2 {[%clk 0:00:07]}  Qe2+ {[%clk 0:00:04]} 96. Kh3 {[%clk 0:00:06]}  Qf1+ {[%clk 0:00:04]} 97. Kh2 {[%clk 0:00:06]}  Qf2+ {[%clk 0:00:04]} 98. Kh3 {[%clk 0:00:07]}  Qf1+ {[%clk 0:00:03]} 99. Kh2 {[%clk 0:00:07]}  d1=Q {[%clk 0:00:02]} 100. Qg8+ {[%clk 0:00:07]}  Kh6 {[%clk 0:00:03]} 101. Qh8+ {[%clk 0:00:07]}  Kg6 {[%clk 0:00:03]} 102. Qg8+ {[%clk 0:00:07]}  Kh5 {[%clk 0:00:04]} 103. g4+ {[%clk 0:00:04]}  fxg4 {[%clk 0:00:02]} 104. Qh7# {[%clk 0:00:04]} 1-0


[Site "https://www.chess.com"]

[Event "Titled Tuesday Blitz November 07 Late 2023"]
[White "Matlakov, Maxim"]
[Black "Gontcharov, Vladislav"]
[WhiteFideId "4168003"]
[BlackFideId "4123492"]
[WhiteElo "2955"]
[BlackElo "2617"]
[Result "1-0"]
[Round "11"]
[TimeControl "180+1"]
[Date "2023.11.07"]
[WhiteClock "0:00:36"]
[BlackClock "0:00:00"]
[Board "20"]

1. c4 {[%clk 0:03:00]}  e6 {[%clk 0:02:56]} 2. Nf3 {[%clk 0:02:59]}  d5 {[%clk 0:02:57]} 3. b3 {[%clk 0:02:59]}  Nf6 {[%clk 0:02:55]} 4. Bb2 {[%clk 0:02:59]}  c5 {[%clk 0:02:55]} 5. e3 {[%clk 0:02:59]}  Nc6 {[%clk 0:02:54]} 6. cxd5 {[%clk 0:02:59]}  Qxd5 {[%clk 0:02:53]} 7. Nc3 {[%clk 0:02:58]}  Qd8 {[%clk 0:02:53]} 8. a3 {[%clk 0:02:58]}  Be7 {[%clk 0:02:52]} 9. Qc2 {[%clk 0:02:58]}  b6 {[%clk 0:02:48]} 10. g4 {[%clk 0:02:56]}  Bb7 {[%clk 0:02:39]} 11. Rg1 {[%clk 0:02:56]}  Nd4 {[%clk 0:02:32]} 12. exd4 {[%clk 0:02:44]}  Bxf3 {[%clk 0:02:28]} 13. Bb5+ {[%clk 0:02:38]}  Kf8 {[%clk 0:02:27]} 14. Qd3 {[%clk 0:02:27]}  Bxg4 {[%clk 0:02:22]} 15. d5 {[%clk 0:02:25]}  Bf5 {[%clk 0:02:06]} 16. Qg3 {[%clk 0:02:23]}  g6 {[%clk 0:01:55]} 17. dxe6 {[%clk 0:02:20]}  Bxe6 {[%clk 0:01:54]} 18. O-O-O {[%clk 0:02:18]}  h5 {[%clk 0:01:50]} 19. Rde1 {[%clk 0:02:16]}  h4 {[%clk 0:01:48]} 20. Qf4 {[%clk 0:02:16]}  Rh5 {[%clk 0:01:43]} 21. Rxe6 {[%clk 0:02:11]}  fxe6 {[%clk 0:01:40]} 22. Rxg6 {[%clk 0:02:11]}  Kf7 {[%clk 0:01:32]} 23. Rg1 {[%clk 0:01:54]}  a6 {[%clk 0:01:20]} 24. Be2 {[%clk 0:01:49]}  Rf5 {[%clk 0:01:15]} 25. Qh6 {[%clk 0:01:48]}  Qh8 {[%clk 0:01:15]} 26. Qg6+ {[%clk 0:01:48]}  Kf8 {[%clk 0:01:14]} 27. Ne4 {[%clk 0:01:45]}  Qh7 {[%clk 0:00:47]} 28. Qg2 {[%clk 0:01:26]}  Rd8 {[%clk 0:00:40]} 29. Ng5 {[%clk 0:01:12]}  Qg8 {[%clk 0:00:39]} 30. f4 {[%clk 0:01:09]}  Nd5 {[%clk 0:00:24]} 31. Bxa6 {[%clk 0:00:44]}  Bxg5 {[%clk 0:00:07]} 32. fxg5 {[%clk 0:00:44]}  Nf4 {[%clk 0:00:07]} 33. Qe4 {[%clk 0:00:40]}  Nd3+ {[%clk 0:00:07]} 34. Bxd3 {[%clk 0:00:39]}  Rxg5 {[%clk 0:00:05]} 35. Rf1+ {[%clk 0:00:37]}  Rf5 {[%clk 0:00:05]} 36. Rxf5+ {[%clk 0:00:36]}  exf5 {[%clk 0:00:05]} 37. Qxf5+ {[%clk 0:00:37]}  Ke8 {[%clk 0:00:00]} 38. Bb5+ {[%clk 0:00:36]} 1-0


[Site "https://www.chess.com"]

[Event "Titled Tuesday Blitz November 07 Late 2023"]
[White "Ghasi, Ameet K"]
[Black "Fiorito, Francisco"]
[WhiteFideId "409200"]
[BlackFideId "180165"]
[WhiteElo "2803"]
[BlackElo "2627"]
[Result "1-0"]
[Round "11"]
[TimeControl "180+1"]
[Date "2023.11.07"]
[WhiteClock "0:00:39"]
[BlackClock "0:00:01"]
[Board "21"]

1. Nf3 {[%clk 0:03:00]}  Nf6 {[%clk 0:02:58]} 2. d4 {[%clk 0:03:01]}  b6 {[%clk 0:02:58]} 3. e3 {[%clk 0:03:02]}  Bb7 {[%clk 0:02:59]} 4. Bd3 {[%clk 0:03:02]}  e6 {[%clk 0:02:58]} 5. b3 {[%clk 0:03:02]}  c5 {[%clk 0:02:58]} 6. Bb2 {[%clk 0:03:02]}  cxd4 {[%clk 0:02:58]} 7. exd4 {[%clk 0:03:03]}  Bb4+ {[%clk 0:02:58]} 8. c3 {[%clk 0:03:00]}  Be7 {[%clk 0:02:59]} 9. O-O {[%clk 0:03:00]}  O-O {[%clk 0:02:58]} 10. Re1 {[%clk 0:03:00]}  d6 {[%clk 0:02:58]} 11. Nbd2 {[%clk 0:03:00]}  Nbd7 {[%clk 0:02:58]} 12. Nf1 {[%clk 0:03:00]}  a6 {[%clk 0:02:58]} 13. Ng3 {[%clk 0:03:00]}  b5 {[%clk 0:02:57]} 14. Rc1 {[%clk 0:03:01]}  Rc8 {[%clk 0:02:55]} 15. Bb1 {[%clk 0:03:01]}  Nb6 {[%clk 0:02:54]} 16. Qd3 {[%clk 0:02:59]}  Bd5 {[%clk 0:02:47]} 17. Nh5 {[%clk 0:02:55]}  g6 {[%clk 0:02:46]} 18. Nf4 {[%clk 0:02:54]}  Bb7 {[%clk 0:02:36]} 19. Ng5 {[%clk 0:02:53]}  Nfd5 {[%clk 0:02:13]} 20. Ngxe6 {[%clk 0:02:30]}  fxe6 {[%clk 0:02:11]} 21. Nxg6 {[%clk 0:02:30]}  Rf7 {[%clk 0:02:10]} 22. c4 {[%clk 0:02:21]}  bxc4 {[%clk 0:02:01]} 23. bxc4 {[%clk 0:02:20]}  Nf6 {[%clk 0:01:33]} 24. Nf4 {[%clk 0:02:10]}  Rg7 {[%clk 0:01:22]} 25. f3 {[%clk 0:02:07]}  Qe8 {[%clk 0:01:16]} 26. Nxe6 {[%clk 0:02:03]}  Rg6 {[%clk 0:01:07]} 27. d5 {[%clk 0:01:59]}  Nbd7 {[%clk 0:00:58]} 28. Qb3 {[%clk 0:01:22]}  Rb8 {[%clk 0:00:45]} 29. Qc3 {[%clk 0:01:21]}  Rh6 {[%clk 0:00:37]} 30. Nd4 {[%clk 0:01:13]}  Ne5 {[%clk 0:00:24]} 31. f4 {[%clk 0:01:09]}  Qh5 {[%clk 0:00:23]} 32. h3 {[%clk 0:01:09]}  Nfg4 {[%clk 0:00:05]} 33. Nf5 {[%clk 0:01:03]}  Bf8 {[%clk 0:00:04]} 34. fxe5 {[%clk 0:00:57]}  Nxe5 {[%clk 0:00:02]} 35. Rxe5 {[%clk 0:00:55]}  dxe5 {[%clk 0:00:02]} 36. Qxe5 {[%clk 0:00:55]}  Rg6 {[%clk 0:00:02]} 37. Rf1 {[%clk 0:00:43]}  Bc5+ {[%clk 0:00:01]} 38. Kh1 {[%clk 0:00:41]}  Qxh3+ {[%clk 0:00:01]} 39. gxh3 {[%clk 0:00:39]}  Bxd5+ {[%clk 0:00:01]} 1-0


[Site "https://www.chess.com"]

[Event "Titled Tuesday Blitz November 07 Late 2023"]
[White "Gimenez Aguirre, Alejo Ismael"]
[Black "Chigaev, Maksim"]
[WhiteFideId "32041667"]
[BlackFideId "4108116"]
[WhiteElo "2585"]
[BlackElo "2875"]
[Result "0-1"]
[Round "11"]
[TimeControl "180+1"]
[Date "2023.11.07"]
[WhiteClock "0:00:02"]
[BlackClock "0:00:38"]
[Board "27"]

1. e4 {[%clk 0:03:00]}  c5 {[%clk 0:02:57]} 2. Nf3 {[%clk 0:03:00]}  e6 {[%clk 0:02:58]} 3. d4 {[%clk 0:03:00]}  cxd4 {[%clk 0:02:59]} 4. Nxd4 {[%clk 0:03:01]}  Nc6 {[%clk 0:02:59]} 5. Nxc6 {[%clk 0:03:01]}  bxc6 {[%clk 0:02:59]} 6. Bd3 {[%clk 0:03:02]}  d5 {[%clk 0:02:58]} 7. O-O {[%clk 0:03:02]}  Nf6 {[%clk 0:02:59]} 8. exd5 {[%clk 0:03:02]}  cxd5 {[%clk 0:02:59]} 9. c4 {[%clk 0:03:03]}  Be7 {[%clk 0:02:54]} 10. cxd5 {[%clk 0:03:03]}  Nxd5 {[%clk 0:02:55]} 11. Be4 {[%clk 0:02:51]}  Bb7 {[%clk 0:02:43]} 12. Nc3 {[%clk 0:02:27]}  Nxc3 {[%clk 0:02:02]} 13. Qxd8+ {[%clk 0:02:25]}  Rxd8 {[%clk 0:02:02]} 14. Bxb7 {[%clk 0:02:25]}  Ne2+ {[%clk 0:01:59]} 15. Kh1 {[%clk 0:02:25]}  Nxc1 {[%clk 0:01:56]} 16. Bc6+ {[%clk 0:02:23]}  Kf8 {[%clk 0:01:56]} 17. Raxc1 {[%clk 0:02:16]}  Rd2 {[%clk 0:01:49]} 18. Be4 {[%clk 0:02:15]}  g6 {[%clk 0:01:38]} 19. Rc7 {[%clk 0:01:37]}  a5 {[%clk 0:01:36]} 20. Ra7 {[%clk 0:01:32]}  Rxb2 {[%clk 0:01:35]} 21. Rxa5 {[%clk 0:01:32]}  Kg7 {[%clk 0:01:36]} 22. g3 {[%clk 0:01:27]}  Rd8 {[%clk 0:01:34]} 23. h4 {[%clk 0:01:18]}  Rdd2 {[%clk 0:01:33]} 24. Kg2 {[%clk 0:01:10]}  Bd8 {[%clk 0:01:32]} 25. Ra3 {[%clk 0:01:02]}  Bb6 {[%clk 0:01:32]} 26. Rf3 {[%clk 0:01:02]}  Rxa2 {[%clk 0:01:27]} 27. h5 {[%clk 0:00:55]}  f5 {[%clk 0:01:27]} 28. Bb1 {[%clk 0:00:55]}  Rab2 {[%clk 0:01:26]} 29. hxg6 {[%clk 0:00:46]}  hxg6 {[%clk 0:01:26]} 30. g4 {[%clk 0:00:40]}  Kf6 {[%clk 0:01:02]} 31. Kg3 {[%clk 0:00:32]}  Bxf2+ {[%clk 0:00:44]} 32. R3xf2 {[%clk 0:00:12]}  Rxf2 {[%clk 0:00:44]} 33. Rxf2 {[%clk 0:00:12]}  Rxb1 {[%clk 0:00:45]} 34. gxf5 {[%clk 0:00:12]}  gxf5 {[%clk 0:00:45]} 35. Ra2 {[%clk 0:00:06]}  Rb3+ {[%clk 0:00:45]} 36. Kf2 {[%clk 0:00:03]}  e5 {[%clk 0:00:44]} 37. Ra5 {[%clk 0:00:04]}  f4 {[%clk 0:00:44]} 38. Ke2 {[%clk 0:00:03]}  Kf5 {[%clk 0:00:44]} 39. Ra8 {[%clk 0:00:03]}  Rb2+ {[%clk 0:00:42]} 40. Kd3 {[%clk 0:00:03]}  e4+ {[%clk 0:00:42]} 41. Kc3 {[%clk 0:00:04]}  Rb7 {[%clk 0:00:41]} 42. Rf8+ {[%clk 0:00:05]}  Kg4 {[%clk 0:00:41]} 43. Kd4 {[%clk 0:00:05]}  Kf3 {[%clk 0:00:41]} 44. Rh8 {[%clk 0:00:05]}  e3 {[%clk 0:00:38]} 45. Rh3+ {[%clk 0:00:04]}  Kg4 {[%clk 0:00:38]} 46. Rh1 {[%clk 0:00:04]}  Re7 {[%clk 0:00:38]} 47. Kd3 {[%clk 0:00:04]}  e2 {[%clk 0:00:38]} 48. Rg1+ {[%clk 0:00:05]}  Kf3 {[%clk 0:00:38]} 49. Re1 {[%clk 0:00:02]}  Kf2 {[%clk 0:00:38]} 0-1


[Site "https://www.chess.com"]

[Event "Titled Tuesday Blitz November 07 Late 2023"]
[White "Jaskolka, Tomasz"]
[Black "Sokolovsky, Yahli"]
[WhiteFideId "1170791"]
[BlackFideId "2820242"]
[WhiteElo "2582"]
[BlackElo "2766"]
[Result "0-1"]
[Round "11"]
[TimeControl "180+1"]
[Date "2023.11.07"]
[WhiteClock "0:00:10"]
[BlackClock "0:01:24"]
[Board "28"]

1. e4 {[%clk 0:03:00]}  d6 {[%clk 0:03:00]} 2. d4 {[%clk 0:03:00]}  g6 {[%clk 0:03:00]} 3. Nc3 {[%clk 0:03:00]}  Bg7 {[%clk 0:03:01]} 4. Bf4 {[%clk 0:03:00]}  a6 {[%clk 0:03:01]} 5. Qd2 {[%clk 0:02:59]}  b5 {[%clk 0:03:02]} 6. a3 {[%clk 0:03:00]}  Bb7 {[%clk 0:03:02]} 7. Nf3 {[%clk 0:03:00]}  Nd7 {[%clk 0:03:03]} 8. Bd3 {[%clk 0:02:58]}  Rc8 {[%clk 0:03:04]} 9. O-O {[%clk 0:02:58]}  c5 {[%clk 0:03:04]} 10. d5 {[%clk 0:02:54]}  Ngf6 {[%clk 0:03:02]} 11. Rfe1 {[%clk 0:02:54]}  O-O {[%clk 0:03:00]} 12. Bh6 {[%clk 0:02:49]}  Re8 {[%clk 0:02:19]} 13. Bxg7 {[%clk 0:02:48]}  Kxg7 {[%clk 0:02:20]} 14. Qf4 {[%clk 0:02:40]}  Qc7 {[%clk 0:02:16]} 15. Rad1 {[%clk 0:02:36]}  e5 {[%clk 0:02:16]} 16. Qh4 {[%clk 0:02:13]}  Rf8 {[%clk 0:02:15]} 17. Bf1 {[%clk 0:02:07]}  Ng8 {[%clk 0:02:15]} 18. Ne2 {[%clk 0:01:59]}  h6 {[%clk 0:02:09]} 19. Ng3 {[%clk 0:01:50]}  Ndf6 {[%clk 0:02:09]} 20. c4 {[%clk 0:01:19]}  Qb6 {[%clk 0:02:04]} 21. b3 {[%clk 0:01:14]}  Rce8 {[%clk 0:02:04]} 22. Bd3 {[%clk 0:01:09]}  Bc8 {[%clk 0:02:04]} 23. Nf1 {[%clk 0:01:02]}  g5 {[%clk 0:02:01]} 24. Nxg5 {[%clk 0:00:59]}  hxg5 {[%clk 0:02:02]} 25. Qxg5+ {[%clk 0:01:00]}  Kh8 {[%clk 0:02:02]} 26. Ne3 {[%clk 0:00:47]}  Nh7 {[%clk 0:01:58]} 27. Qh5 {[%clk 0:00:46]}  Nf6 {[%clk 0:01:54]} 28. Qh4 {[%clk 0:00:44]}  Rg8 {[%clk 0:01:54]} 29. Nf5 {[%clk 0:00:38]}  Bxf5 {[%clk 0:01:52]} 30. exf5 {[%clk 0:00:39]}  Rg4 {[%clk 0:01:48]} 31. Qh6 {[%clk 0:00:36]}  Reg8 {[%clk 0:01:48]} 32. Re3 {[%clk 0:00:18]}  Rxg2+ {[%clk 0:01:47]} 33. Kh1 {[%clk 0:00:19]}  bxc4 {[%clk 0:01:39]} 34. Rh3 {[%clk 0:00:15]}  Qd8 {[%clk 0:01:24]} 35. Bxc4 {[%clk 0:00:14]}  R8g7 {[%clk 0:01:25]} 36. Bf1 {[%clk 0:00:10]}  Rg1# {[%clk 0:01:24]} 0-1


[Site "https://www.chess.com"]

[Event "Titled Tuesday Blitz November 07 Late 2023"]
[White "Mekhitarian, Krikor Sevag"]
[Black "Oglaza, Oskar"]
[WhiteFideId "2107660"]
[BlackFideId "1194402"]
[WhiteElo "2741"]
[BlackElo "2561"]
[Result "0-1"]
[Round "11"]
[TimeControl "180+1"]
[Date "2023.11.07"]
[WhiteClock "0:00:00"]
[BlackClock "0:00:31"]
[Board "30"]

1. Nf3 {[%clk 0:03:00]}  Nf6 {[%clk 0:02:56]} 2. c4 {[%clk 0:03:01]}  c5 {[%clk 0:02:46]} 3. Nc3 {[%clk 0:03:01]}  g6 {[%clk 0:02:45]} 4. e4 {[%clk 0:03:00]}  d6 {[%clk 0:02:43]} 5. d4 {[%clk 0:03:00]}  cxd4 {[%clk 0:02:44]} 6. Nxd4 {[%clk 0:03:01]}  Bg7 {[%clk 0:02:44]} 7. Be2 {[%clk 0:03:01]}  O-O {[%clk 0:02:44]} 8. O-O {[%clk 0:03:01]}  Nc6 {[%clk 0:02:41]} 9. Nc2 {[%clk 0:03:01]}  Bd7 {[%clk 0:02:41]} 10. Be3 {[%clk 0:03:01]}  Rc8 {[%clk 0:02:41]} 11. Rc1 {[%clk 0:03:01]}  Qc7 {[%clk 0:02:24]} 12. h3 {[%clk 0:02:57]}  Rfd8 {[%clk 0:02:20]} 13. b3 {[%clk 0:02:46]}  Qb8 {[%clk 0:02:20]} 14. Qd2 {[%clk 0:02:42]}  a6 {[%clk 0:02:14]} 15. a4 {[%clk 0:02:37]}  b5 {[%clk 0:01:42]} 16. cxb5 {[%clk 0:02:37]}  axb5 {[%clk 0:01:42]} 17. Bxb5 {[%clk 0:02:37]}  Na5 {[%clk 0:01:41]} 18. Rb1 {[%clk 0:02:07]}  Bxb5 {[%clk 0:01:37]} 19. Nxb5 {[%clk 0:02:05]}  Nxe4 {[%clk 0:01:36]} 20. Qxa5 {[%clk 0:02:05]}  Rxc2 {[%clk 0:01:35]} 21. Qb6 {[%clk 0:01:41]}  Nc3 {[%clk 0:01:25]} 22. Nxc3 {[%clk 0:01:36]}  Bxc3 {[%clk 0:01:26]} 23. b4 {[%clk 0:01:26]}  d5 {[%clk 0:01:22]} 24. Bc5 {[%clk 0:01:20]}  d4 {[%clk 0:01:19]} 25. Qxb8 {[%clk 0:00:41]}  Rxb8 {[%clk 0:01:14]} 26. Rfd1 {[%clk 0:00:41]}  e5 {[%clk 0:01:04]} 27. a5 {[%clk 0:00:26]}  Ra2 {[%clk 0:01:00]} 28. Rb3 {[%clk 0:00:05]}  f6 {[%clk 0:00:55]} 29. Rc1 {[%clk 0:00:03]}  Kf7 {[%clk 0:00:51]} 30. Rbxc3 {[%clk 0:00:04]}  dxc3 {[%clk 0:00:50]} 31. Rxc3 {[%clk 0:00:04]}  e4 {[%clk 0:00:46]} 32. g4 {[%clk 0:00:04]}  f5 {[%clk 0:00:46]} 33. gxf5 {[%clk 0:00:04]}  gxf5 {[%clk 0:00:47]} 34. Kg2 {[%clk 0:00:04]}  f4 {[%clk 0:00:44]} 35. Rc4 {[%clk 0:00:04]}  Re8 {[%clk 0:00:43]} 36. Bb6 {[%clk 0:00:02]}  Kg6 {[%clk 0:00:42]} 37. Rc6+ {[%clk 0:00:02]}  Kf5 {[%clk 0:00:37]} 38. Rc5+ {[%clk 0:00:03]}  Re5 {[%clk 0:00:32]} 39. Rc8 {[%clk 0:00:02]}  e3 {[%clk 0:00:31]} 40. Rf8+ {[%clk 0:00:00]}  Ke4 {[%clk 0:00:31]} 0-1


[Site "https://www.chess.com"]

[Event "Titled Tuesday Blitz November 07 Late 2023"]
[White "Bilan, Danila"]
[Black "Gubajdullin, Alexei"]
[WhiteFideId "24161918"]
[BlackFideId "4141202"]
[WhiteElo "2523"]
[BlackElo "2657"]
[Result "0-1"]
[Round "11"]
[TimeControl "180+1"]
[Date "2023.11.07"]
[WhiteClock "0:00:00"]
[BlackClock "0:00:23"]
[Board "32"]

1. d4 {[%clk 0:03:00]}  Nf6 {[%clk 0:02:59]} 2. Nf3 {[%clk 0:02:52]}  g6 {[%clk 0:02:58]} 3. Bg5 {[%clk 0:02:50]}  Bg7 {[%clk 0:02:58]} 4. c3 {[%clk 0:02:50]}  O-O {[%clk 0:02:58]} 5. Nbd2 {[%clk 0:02:51]}  d6 {[%clk 0:02:58]} 6. e4 {[%clk 0:02:51]}  Nc6 {[%clk 0:02:58]} 7. Bc4 {[%clk 0:02:50]}  h6 {[%clk 0:02:56]} 8. Bh4 {[%clk 0:02:50]}  e5 {[%clk 0:02:56]} 9. dxe5 {[%clk 0:02:49]}  Nxe5 {[%clk 0:02:56]} 10. Nxe5 {[%clk 0:02:48]}  dxe5 {[%clk 0:02:56]} 11. O-O {[%clk 0:02:49]}  Qe8 {[%clk 0:02:55]} 12. Qe2 {[%clk 0:02:41]}  Nh5 {[%clk 0:02:54]} 13. Bg3 {[%clk 0:02:37]}  Kh7 {[%clk 0:02:40]} 14. Rfe1 {[%clk 0:02:32]}  Bd7 {[%clk 0:02:27]} 15. Rad1 {[%clk 0:02:26]}  Rd8 {[%clk 0:02:22]} 16. Nf1 {[%clk 0:02:21]}  Nxg3 {[%clk 0:02:12]} 17. hxg3 {[%clk 0:02:17]}  Bc8 {[%clk 0:02:09]} 18. Ne3 {[%clk 0:02:07]}  c6 {[%clk 0:02:06]} 19. Bb3 {[%clk 0:01:46]}  Qe7 {[%clk 0:02:04]} 20. Rxd8 {[%clk 0:01:38]}  Rxd8 {[%clk 0:02:03]} 21. Rd1 {[%clk 0:01:39]}  Rxd1+ {[%clk 0:01:58]} 22. Qxd1 {[%clk 0:01:38]}  h5 {[%clk 0:01:56]} 23. Nc4 {[%clk 0:01:36]}  Bf8 {[%clk 0:01:50]} 24. Qd3 {[%clk 0:01:24]}  f6 {[%clk 0:01:34]} 25. Nd2 {[%clk 0:01:17]}  b5 {[%clk 0:01:30]} 26. a4 {[%clk 0:01:08]}  a6 {[%clk 0:01:29]} 27. axb5 {[%clk 0:01:08]}  axb5 {[%clk 0:01:29]} 28. Nf3 {[%clk 0:00:54]}  Qd6 {[%clk 0:01:25]} 29. Qe3 {[%clk 0:00:50]}  Bh6 {[%clk 0:01:21]} 30. Qa7+ {[%clk 0:00:47]}  Bd7 {[%clk 0:01:09]} 31. Qa8 {[%clk 0:00:43]}  Bf8 {[%clk 0:01:03]} 32. Kh2 {[%clk 0:00:38]}  Kg7 {[%clk 0:01:02]} 33. Qd8 {[%clk 0:00:21]}  Qe7 {[%clk 0:01:01]} 34. Qa8 {[%clk 0:00:20]}  Be8 {[%clk 0:00:59]} 35. Nh4 {[%clk 0:00:17]}  Qd7 {[%clk 0:00:56]} 36. Nf3 {[%clk 0:00:12]}  Be7 {[%clk 0:00:55]} 37. c4 {[%clk 0:00:10]}  Bc5 {[%clk 0:00:49]} 38. cxb5 {[%clk 0:00:09]}  cxb5 {[%clk 0:00:48]} 39. Kg1 {[%clk 0:00:06]}  Bb6 {[%clk 0:00:36]} 40. Bd5 {[%clk 0:00:06]}  Qd8 {[%clk 0:00:32]} 41. Qb7+ {[%clk 0:00:06]}  Qc7 {[%clk 0:00:32]} 42. Qa8 {[%clk 0:00:06]}  Kf8 {[%clk 0:00:28]} 43. b4 {[%clk 0:00:05]}  Ke7 {[%clk 0:00:28]} 44. Qa1 {[%clk 0:00:03]}  Qa7 {[%clk 0:00:25]} 45. Qf1 {[%clk 0:00:02]}  Qa3 {[%clk 0:00:24]} 46. Qc1 {[%clk 0:00:00]}  Qxc1+ {[%clk 0:00:23]} 0-1


[Site "https://www.chess.com"]